fUSD/lending_fUSD_20240629
["ID","MTS","AMOUNT","RATE_DAILY","PERIOD"]
[330643717,1719683445711,-500.0,0.0001389,3]
[330643718,1719683445721,-500.0,0.0001389,3]
[330643719,1719683445731,-1476.8,0.0001389,3]
[330643720,1719683445741,-500.0,0.0001389,3]
[330643721,1719683445753,-500.0,0.0001389,3]
[330643722,1719683445763,-1073.88,0.0001389,3]
[330643723,1719683445775,-779.41,0.0001389,3]
[330643724,1719683445785,-1323.31,0.0001389,3]
[330643725,1719683445796,-500.0,0.0001389,3]
[330643726,1719683445806,-500.0,0.0001389,3]
[330643727,1719683445816,-500.0,0.0001389,3]
[330643728,1719683445827,-500.0,0.0001389,3]
[330643729,1719683445837,-500.0,0.0001389,3]
[330643730,1719683445846,-619.26,0.0001389,3]
[330643731,1719683445856,-500.0,0.0001389,3]
[330643732,1719683445866,-1318.52,0.0001389,3]
[330643733,1719683445875,-938.96,0.0001389,3]
[330643734,1719683445885,-500.0,0.0001389,3]
[330643735,1719683445894,-596.7,0.0001389,3]
[330643736,1719683445903,-500.0,0.0001389,3]
[330643737,1719683445913,-500.0,0.0001389,3]
[330643738,1719683445922,-1068.65606642,0.0001389,3]
[330643739,1719683446068,-745.18393358,0.0001389,3]
[330643740,1719683446082,-2641.61,0.0001389,3]
[330643741,1719683446091,-500.0,0.0001389,3]
[330643742,1719683446101,-520.68,0.0001389,3]
[330643743,1719683446111,-500.0,0.0001389,3]
[330643744,1719683446120,-1195.18,0.0001389,3]
[330643745,1719683446130,-500.0,0.0001389,3]
[330643746,1719683446139,-1591.84,0.0001389,3]
[330643747,1719683446151,-341.75909481,0.0001389,3]
[330643748,1719683446160,-1324.44,0.0001389,3]
[330643749,1719683446170,-458.77644071,0.0001389,3]
[330643750,1719683446179,-1178.68,0.0001389,3]
[330643751,1719683446189,-636.31,0.0001389,3]
[330643752,1719683446199,-500.0,0.0001389,3]
[330643753,1719683446208,-1278.38,0.0001389,3]
[330643754,1719683446217,-297.134888,0.0001389,2]
[330643755,1719683446227,-500.0,0.0001389,3]
[330643756,1719683446236,-632.45847135,0.0001389,3]
[330643757,1719683446515,-297.134888,0.0001389,2]
[330643758,1719683446528,-1073.4,0.0001389,3]
[330643759,1719683446538,-500.0,0.0001389,3]
[330643760,1719683446547,-1344.83,0.0001389,3]
[330643761,1719683446556,-500.0,0.0001389,3]
[330643762,1719683446565,-500.0,0.0001389,3]
[330643763,1719683446575,-500.0,0.0001389,3]
[330643764,1719683446584,-2284.61,0.0001389,3]
[330643765,1719683446593,-500.0,0.0001389,3]
[330643766,1719683446603,-500.0,0.0001389,2]
[330643767,1719683446612,-500.0,0.0001389,2]
[330643768,1719683446621,-1540.88,0.0001389,2]
[330643769,1719683446630,-500.0,0.0001389,3]
[330643770,1719683446640,-1827.88,0.0001389,3]
[330643771,1719683446649,-500.0,0.0001389,3]
[330643772,1719683446658,-151.0,0.0001389,2]
[330643773,1719683446668,-500.0,0.0001389,3]
[330643774,1719683446677,-151.0,0.0001389,2]
[330643775,1719683446686,-2136.39,0.0001389,3]
[330643776,1719683446695,-500.0,0.0001389,3]
[330643777,1719683446704,-779.75,0.0001389,3]
[330643778,1719683446714,-1870.55,0.0001389,3]
[330643779,1719683446723,-1146.99,0.0001389,3]
[330643780,1719683446732,-2002.88,0.0001389,3]
[330643781,1719683446741,-500.0,0.0001389,3]
[330643782,1719683446751,-500.0,0.0001389,3]
[330643783,1719683446760,-500.0,0.0001389,3]
[330643784,1719683446769,-1775.91,0.0001389,3]
[330643785,1719683446778,-151.0,0.0001389,2]
[330643786,1719683446787,-575.52,0.0001389,3]
[330643787,1719683446796,-151.0,0.0001389,2]
[330643788,1719683446806,-1984.89,0.0001389,3]
[330643789,1719683446815,-500.0,0.0001389,3]
[330643790,1719683446825,-500.0,0.0001389,3]
[330643791,1719683446834,-500.0,0.0001389,3]
[330643792,1719683446843,-500.0,0.0001389,3]
[330643793,1719683446854,-625.97,0.0001389,3]
[330643794,1719683446864,-1474.21,0.0001389,3]
[330643795,1719683446874,-151.0,0.0001389,2]
[330643796,1719683446884,-500.0,0.0001389,3]
[330643797,1719683446894,-500.0,0.0001389,3]
[330643798,1719683446904,-659.35,0.0001389,3]
[330643799,1719683446914,-467.45169041,0.0001389,3]
[330643800,1719683446924,-1655.77,0.0001389,3]
[330643801,1719683446934,-964.28,0.0001389,3]
[330643802,1719683446943,-500.0,0.0001389,3]
[330643803,1719683446953,-1522.05,0.0001389,3]
[330643804,1719683446962,-151.0,0.0001389,2]
[330643805,1719683446972,-500.0,0.0001389,3]
[330643806,1719683446981,-768.66,0.0001389,3]
[330643807,1719683446991,-500.0,0.0001389,3]
[330643808,1719683447000,-151.0,0.0001389,2]
[330643809,1719683447009,-2361.6,0.0001389,3]
[330643810,1719683447020,-151.0,0.0001389,2]
[330643811,1719683447031,-931.72,0.0001389,3]
[330643812,1719683447042,-1089.41,0.0001389,3]
[330643813,1719683447052,-500.0,0.0001389,3]
[330643814,1719683447063,-1079.83,0.0001389,3]
[330643815,1719683447078,-500.0,0.0001389,3]
[330643816,1719683447088,-322.68450504,0.0001389,3]
[330643817,1719683447097,-525.68,0.0001389,3]
[330643818,1719683447107,-889.34,0.0001389,3]
[330643819,1719683447116,-1168.88,0.0001389,3]
[330643820,1719683447126,-1620.23,0.0001389,3]
[330643821,1719683447135,-1630.79,0.0001389,3]
[330643822,1719683447145,-500.0,0.0001389,3]
[330643823,1719683447154,-500.0,0.0001389,3]
[330643824,1719683447164,-557.4,0.0001389,3]
[330643825,1719683447174,-1408.29,0.0001389,3]
[330643826,1719683447185,-500.0,0.0001389,3]
[330643827,1719683447195,-169.490808,0.0001389,2]
[330643828,1719683447205,-500.0,0.0001389,3]
[330643829,1719683447214,-1763.83,0.0001389,3]
[330643830,1719683447224,-169.490808,0.0001389,2]
[330643831,1719683447235,-500.0,0.0001389,3]
[330643832,1719683447246,-2133.12,0.0001389,3]
[330643833,1719683447256,-500.0,0.0001389,3]
[330643834,1719683447267,-151.0,0.0001389,2]
[330643835,1719683447278,-500.0,0.0001389,3]
[330643836,1719683447289,-1115.12,0.0001389,3]
[330643837,1719683447299,-151.0,0.0001389,2]
[330643838,1719683447309,-500.0,0.0001389,3]
[330643839,1719683447319,-500.0,0.0001389,3]
[330643840,1719683447328,-500.0,0.0001389,3]
[330643841,1719683447338,-2387.59,0.0001389,3]
[330643842,1719683447348,-500.0,0.0001389,3]
[330643843,1719683447358,-701.93,0.0001389,3]
[330643844,1719683447369,-500.0,0.0001389,3]
[330643845,1719683447379,-2164.6,0.0001389,3]
[330643846,1719683447389,-505.51,0.0001389,3]
[330643847,1719683447399,-500.0,0.0001389,3]
[330643848,1719683447408,-500.0,0.0001389,3]
[330643849,1719683447419,-500.0,0.0001389,3]
[330643850,1719683447428,-500.0,0.0001389,3]
[330643851,1719683447438,-500.0,0.0001389,3]
[330643852,1719683447450,-500.0,0.0001389,3]
[330643853,1719683447459,-904.05,0.0001389,3]
[330643854,1719683447470,-575.27,0.0001389,3]
[330643855,1719683447480,-2544.45,0.0001389,3]
[330643856,1719683447490,-1548.22,0.0001389,3]
[330643857,1719683447500,-1020.55,0.0001389,3]
[330643858,1719683447509,-500.0,0.0001389,3]
[330643859,1719683447520,-500.0,0.0001389,3]
[330643860,1719683447529,-500.0,0.0001389,3]
[330643861,1719683447539,-500.0,0.0001389,3]
[330643862,1719683447549,-500.0,0.0001389,3]
[330643863,1719683447559,-500.0,0.0001389,3]
[330643864,1719683447568,-1001.2,0.0001389,2]
[330643865,1719683447578,-710.1,0.0001389,3]
[330643866,1719683447588,-616.61,0.0001389,3]
[330643867,1719683447598,-500.0,0.0001389,3]
[330643868,1719683447608,-500.0,0.0001389,3]
[330643869,1719683447617,-2105.37,0.0001389,3]
[330643870,1719683447627,-1209.31,0.0001389,3]
[330643871,1719683447636,-500.0,0.0001389,3]
[330643872,1719683447645,-1095.12,0.0001389,3]
[330643873,1719683447654,-151.0,0.0001389,2]
[330643874,1719683447664,-500.0,0.0001389,3]
[330643875,1719683447673,-314.791303,0.0001389,2]
[330643876,1719683447682,-1092.32,0.0001389,3]
[330643877,1719683447691,-314.791303,0.0001389,2]
[330643878,1719683447700,-624.33,0.0001389,3]
[330643879,1719683447709,-500.0,0.0001389,3]
[330643880,1719683447718,-1817.28,0.0001389,3]
[330643881,1719683447728,-925.64,0.0001389,3]
[330643882,1719683447738,-151.0,0.0001389,2]
[330643883,1719683447748,-690.42,0.0001389,3]
[330643884,1719683447759,-151.0,0.0001389,2]
[330643885,1719683447770,-500.0,0.0001389,3]
[330643886,1719683447780,-151.0,0.0001389,2]
[330643887,1719683447790,-553.63,0.0001389,3]
[330643888,1719683447800,-187.882268,0.0001389,2]
[330643889,1719683447810,-500.0,0.0001389,3]
[330643890,1719683447822,-500.0,0.0001389,3]
[330643891,1719683447832,-540.0,0.0001389,3]
[330643892,1719683447841,-500.0,0.0001389,3]
[330643893,1719683447851,-694.05,0.0001389,3]
[330643894,1719683447864,-151.0,0.0001389,2]
[330643895,1719683447876,-500.0,0.0001389,3]
[330643896,1719683447886,-151.0,0.0001389,2]
[330643897,1719683447895,-1525.63,0.0001389,3]
[330643898,1719683447905,-757.52,0.0001389,3]
[330643899,1719683447914,-507.88,0.0001389,3]
[330643900,1719683447923,-570.54903521,0.0001389,3]
[330643901,1719683447934,-591.51,0.0001389,3]
[330643902,1719683447945,-1982.22,0.0001389,3]
[330643903,1719683447957,-1488.74,0.0001389,3]
[330643904,1719683447966,-899.42,0.0001389,3]
[330643905,1719683447976,-3763.18,0.0001389,3]
[330643906,1719683447985,-449.601505,0.0001389,2]
[330643907,1719683447995,-500.0,0.0001389,3]
[330643908,1719683448005,-449.601505,0.0001389,2]
[330643909,1719683448014,-500.0,0.0001389,3]
[330643910,1719683448024,-662.59,0.0001389,3]
[330643911,1719683448033,-6152.22,0.0001389,3]
[330643912,1719683448043,-151.0,0.0001389,2]
[330643913,1719683448052,-151.0,0.0001389,2]
[330643914,1719683448063,-583.79,0.0001389,3]
[330643915,1719683448076,-151.0,0.0001389,2]
[330643916,1719683448086,-500.0,0.0001389,3]
[330643917,1719683448097,-151.0,0.0001389,2]
[330643918,1719683448106,-1055.11,0.0001389,3]
[330643919,1719683448118,-2103.59,0.0001389,3]
[330643920,1719683448127,-763.09,0.0001389,3]
[330643921,1719683448137,-500.0,0.0001389,3]
[330643922,1719683448147,-500.0,0.0001389,3]
[330643923,1719683448157,-307.6266872,0.0001389,3]
[330643924,1719683448167,-500.0,0.0001389,3]
[330643925,1719683448176,-1824.44,0.0001389,3]
[330643926,1719683448186,-1720.91,0.0001389,3]
[330643927,1719683448195,-1328.07,0.0001389,3]
[330643928,1719683448205,-151.0,0.0001389,2]
[330643929,1719683448215,-151.0,0.0001389,2]
[330643930,1719683448224,-500.0,0.0001389,3]
[330643931,1719683448234,-500.0,0.0001389,3]
[330643932,1719683448244,-987.017113,0.0001389,2]
[330643933,1719683448254,-639.0,0.00013891,2]
[330643934,1719683448264,-2565.87,0.00013891,3]
[330643935,1719683448274,-337.85698936,0.00013891,3]
[330643936,1719683449453,-500.0,0.00013889,3]
[330643937,1719683449463,-865.5162,0.00013891,3]
[330643938,1719683449474,-672.03487054,0.00013891,3]
[330643939,1719683449486,-1488.95138755,0.00013891,3]
[330643940,1719683449498,-506.363244,0.00013891,3]
[330643941,1719683449509,-4425.32730855,0.00013891,3]
[330643942,1719683449519,-3261.03,0.00013891,3]
[330643943,1719683449528,-5125.83,0.00013891,3]
[330643944,1719683449537,-3513.73,0.00013891,3]
[330643945,1719683449547,-1278.57,0.00013891,3]
[330643946,1719683449556,-5204.04,0.00013891,3]
[330643947,1719683449566,-1546.82,0.00013891,3]
[330643948,1719683449575,-4117.75,0.00013891,3]
[330643949,1719683449584,-1012.25,0.00013891,3]
[330643950,1719683449593,-973.12,0.00013891,3]
[330643951,1719683449603,-1243.61,0.00013891,3]
[330643952,1719683449614,-3900.02,0.00013891,3]
[330643953,1719683449624,-500.0,0.00013891,3]
[330643954,1719683449634,-500.0,0.00013891,3]
[330643955,1719683449643,-1172.11,0.00013891,3]
[330643956,1719683449652,-795.65,0.00013891,3]
[330643957,1719683449662,-500.0,0.00013891,3]
[330643958,1719683449673,-500.0,0.00013891,3]
[330643959,1719683449682,-500.0,0.00013891,3]
[330643960,1719683449692,-500.0,0.00013891,3]
[330643961,1719683449701,-500.0,0.00013891,3]
[330643962,1719683449712,-4580.47,0.00013891,3]
[330643963,1719683449723,-1069.53,0.00013891,3]
[330643964,1719683449734,-902.41,0.00013891,3]
[330643965,1719683449743,-1218.04,0.00013891,3]
[330643966,1719683449754,-1068.08,0.00013891,3]
[330643967,1719683449763,-1829.6,0.00013891,3]
[330643968,1719683449772,-500.0,0.00013891,3]
[330643969,1719683449783,-500.0,0.00013891,3]
[330643970,1719683449793,-500.0,0.00013891,3]
[330643971,1719683449802,-500.0,0.00013891,3]
[330643972,1719683449812,-500.0,0.00013891,3]
[330643973,1719683449822,-1299.4,0.00013891,3]
[330643974,1719683449832,-4662.65,0.00013891,3]
[330643975,1719683449843,-500.0,0.00013891,3]
[330643976,1719683449852,-529.12,0.00013891,3]
[330643977,1719683449863,-500.0,0.00013891,3]
[330643978,1719683449873,-500.0,0.00013891,3]
[330643979,1719683449883,-500.0,0.00013891,3]
[330643980,1719683449894,-575.14,0.00013891,3]
[330643981,1719683449905,-3399.85,0.00013891,3]
[330643982,1719683449915,-633.88,0.00013891,3]
[330643983,1719683449924,-1309.94,0.00013891,3]
[330643984,1719683449934,-500.0,0.00013891,3]
[330643985,1719683449943,-500.0,0.00013891,3]
[330643986,1719683449952,-4780.24,0.00013891,3]
[330643987,1719683449962,-1173.28,0.00013891,3]
[330643988,1719683449972,-1423.38,0.00013891,3]
[330643989,1719683449982,-500.0,0.00013891,3]
[330643990,1719683449992,-3228.62,0.00013891,3]
[330643991,1719683450001,-500.0,0.00013891,3]
[330643992,1719683450011,-642.4,0.00013891,3]
[330643993,1719683450020,-682.68,0.00013891,3]
[330643994,1719683450030,-755.95,0.00013891,3]
[330643995,1719683450040,-500.0,0.00013891,3]
[330643996,1719683450051,-520.14,0.00013891,3]
[330643997,1719683450063,-1972.57446356,0.00013891,3]
[330643998,1719683450081,-1229.69159329,0.00013891,3]
[330643999,1719683450093,-1134.31999994,0.00013891,3]
[330644000,1719683450106,-912.45,0.00013891,3]
[330644001,1719683450119,-5180.96394321,0.00013891,3]
[330644002,1719683450129,-500.0,0.00013891,3]
[330644003,1719683450138,-500.0,0.00013891,3]
[330644004,1719683450149,-925.64,0.00013891,3]
[330644005,1719683450158,-635.11,0.00013891,3]
[330644006,1719683450169,-361.29053677,0.00013891,3]
[330644007,1719683450179,-11152.44,0.00013891,3]
[330644008,1719683450189,-919.57,0.00013891,3]
[330644009,1719683450199,-500.0,0.00013891,3]
[330644010,1719683450209,-827.33,0.00013891,3]
[330644011,1719683450219,-500.0,0.00013891,3]
[330644012,1719683450229,-816.94,0.00013891,3]
[330644013,1719683450239,-500.0,0.00013891,3]
[330644014,1719683450248,-1192.96387175,0.00013891,3]
[330644015,1719683450260,-752.79796392,0.00013891,3]
[330644016,1719683450273,-1307.55816433,0.00013891,3]
[330644017,1719683450283,-500.0,0.00013891,3]
[330644018,1719683450293,-297.134888,0.00013891,2]
[330644019,1719683450302,-500.0,0.00013891,3]
[330644020,1719683450311,-297.134888,0.00013891,2]
[330644021,1719683450320,-132.67594963,0.00013891,3]
[330644022,1719683450333,-1085.140985,0.00013891,3]
[330644023,1719683450344,-381.05306537,0.00013891,3]
[330644024,1719683450354,-46.43108238,0.00013891,3]
[330644025,1719683450389,-332.64456287,0.00013891,3]
[330644026,1719683450400,-438.09435475,0.00013891,3]
[330644027,1719683450411,-500.0,0.00013891,3]
[330644028,1719683450423,-73.20853202,0.00013891,2]
[330644029,1719683450435,-426.79146798,0.00013891,2]
[330644030,1719683450446,-764.7,0.00013891,3]
[330644031,1719683450458,-151.0,0.00013891,2]
[330644032,1719683450467,-500.0,0.00013891,3]
[330644033,1719683450476,-151.0,0.00013891,2]
[330644034,1719683450486,-1130.31,0.00013891,3]
[330644035,1719683450497,-4504.52,0.00013891,3]
[330644036,1719683450507,-500.0,0.00013891,3]
[330644037,1719683450518,-500.0,0.00013891,3]
[330644038,1719683450528,-605.14,0.00013891,3]
[330644039,1719683450538,-13228.66,0.00013891,3]
[330644040,1719683450549,-500.0,0.00013891,3]
[330644041,1719683450559,-975.07,0.00013891,3]
[330644042,1719683450569,-151.0,0.00013891,2]
[330644043,1719683450579,-500.0,0.00013891,3]
[330644044,1719683450588,-151.0,0.00013891,2]
[330644045,1719683450598,-500.0,0.00013891,3]
[330644046,1719683450607,-2117.05,0.00013891,3]
[330644047,1719683450616,-2113.64,0.00013891,3]
[330644048,1719683450625,-151.0,0.00013891,2]
[330644049,1719683450634,-831.68,0.00013891,3]
[330644050,1719683450644,-524.57,0.00013891,3]
[330644051,1719683450654,-3222.54,0.00013891,3]
[330644052,1719683450664,-229.10500792,0.00013891,3]
[330644053,1719683450674,-500.0,0.00013891,3]
[330644054,1719683450683,-1019.57,0.00013891,3]
[330644055,1719683450693,-151.0,0.00013891,2]
[330644056,1719683450702,-151.0,0.00013891,2]
[330644057,1719683450712,-151.0,0.00013891,2]
[330644058,1719683450721,-1984.15,0.00013891,3]
[330644059,1719683450730,-284.0,0.00013891,2]
[330644060,1719683450740,-1737.64,0.00013891,3]
[330644061,1719683450749,-500.0,0.00013891,3]
[330644062,1719683450759,-3320.1,0.00013891,3]
[330644063,1719683450768,-1245.17,0.00013891,3]
[330644064,1719683450777,-151.0,0.00013891,2]
[330644065,1719683450786,-151.0,0.00013891,2]
[330644066,1719683450795,-730.79,0.00013891,3]
[330644067,1719683450805,-151.0,0.00013891,2]
[330644068,1719683450815,-151.0,0.00013891,2]
[330644069,1719683450826,-1447.01,0.00013891,3]
[330644070,1719683450835,-500.0,0.00013891,3]
[330644071,1719683450845,-1404.47,0.00013891,3]
[330644072,1719683450856,-500.0,0.00013891,3]
[330644073,1719683450866,-1078.42,0.00013891,3]
[330644074,1719683450877,-500.0,0.00013891,3]
[330644075,1719683450886,-500.0,0.00013891,3]
[330644076,1719683450896,-500.0,0.00013891,3]
[330644077,1719683450905,-3303.55,0.00013891,3]
[330644078,1719683450915,-519.48,0.00013891,3]
[330644079,1719683450924,-262.02303879,0.00013891,3]
[330644080,1719683450955,-2784.85696121,0.00013891,3]
[330644081,1719683450965,-500.0,0.00013891,3]
[330644082,1719683450974,-500.0,0.00013891,3]
[330644083,1719683450983,-500.0,0.00013891,3]
[330644084,1719683450993,-169.490808,0.00013891,2]
[330644085,1719683451003,-1343.32,0.00013891,3]
[330644086,1719683451012,-169.490808,0.00013891,2]
[330644087,1719683451022,-151.0,0.00013891,2]
[330644088,1719683451031,-714.44,0.00013891,3]
[330644089,1719683451040,-347.40142279,0.00013891,3]
[330644090,1719683451052,-2135.34857721,0.00013891,3]
[330644091,1719683451063,-3359.84,0.00013891,3]
[330644092,1719683451077,-1605.98,0.00013891,2]
[330644093,1719683451086,-1688.94,0.00013891,3]
[330644094,1719683451096,-227.12638191,0.00013891,3]
[330644095,1719683451108,-272.87361809,0.00013891,3]
[330644096,1719683451118,-3646.83,0.00013891,3]
[330644097,1719683451127,-524.43,0.00013891,3]
[330644098,1719683451137,-2704.08,0.00013891,3]
[330644099,1719683451146,-1923.1,0.00013891,3]
[330644100,1719683451156,-3201.03,0.00013891,3]
[330644101,1719683451166,-547.98,0.00013891,3]
[330644102,1719683451176,-314.791303,0.00013891,2]
[330644103,1719683451186,-314.791303,0.00013891,2]
[330644104,1719683451196,-2309.12,0.00013891,3]
[330644105,1719683451206,-151.0,0.00013891,2]
[330644106,1719683451216,-151.0,0.00013891,2]
[330644107,1719683451226,-151.0,0.00013891,2]
[330644108,1719683451235,-500.0,0.00013891,3]
[330644109,1719683451245,-3176.38,0.00013891,3]
[330644110,1719683451254,-151.0,0.00013891,2]
[330644111,1719683451263,-151.0,0.00013891,2]
[330644112,1719683451273,-2226.92,0.00013891,3]
[330644113,1719683451282,-449.601505,0.00013891,2]
[330644114,1719683451291,-449.601505,0.00013891,2]
[330644115,1719683451300,-151.0,0.00013891,2]
[330644116,1719683451310,-151.0,0.00013891,2]
[330644117,1719683451421,-151.0,0.00013891,2]
[330644118,1719683451431,-151.0,0.00013891,2]
[330644119,1719683451440,-151.0,0.00013891,2]
[330644120,1719683451449,-987.017113,0.00013891,2]
[330644121,1719683451459,-1540.88,0.00013892,2]
[330644122,1719683451468,-500.0,0.00013892,2]
[330644123,1719683451477,-3607.92,0.00013893,3]
[330644124,1719683451486,-1683.8413933,0.00013893,3]
[330644125,1719683451498,-4367.0186067,0.00013893,3]
[330644126,1719683451507,-2088.08,0.00013893,3]
[330644127,1719683451516,-1766.21,0.00013893,3]
[330644128,1719683451525,-6485.66,0.00013893,3]
[330644129,1719683451535,-940.07,0.00013893,3]
[330644130,1719683451544,-500.0,0.00013893,3]
[330644131,1719683451553,-3827.28,0.00013893,3]
[330644132,1719683451563,-1806.3814827,0.00013897,2]
[330644133,1719683451573,-500.0,0.00013897,2]
[330644134,1719683451584,-165.50364453,0.00013898,2]
[330644135,1719683451593,-11809.82523132,0.00013898,2]
[330644136,1719683451602,-2049.67397229,0.00013899,2]
[330644137,1719683451611,-482.87871356,0.00013899,2]
[330644138,1719683451621,-4643.88390306,0.00013899,2]
[330644139,1719683451630,-269.96406544,0.00013899,2]
[330644140,1719683451640,-4751.21310819,0.000139,2]
[330644141,1719683451649,-1000.0,0.000139,2]
[330644142,1719683451659,-1411.0,0.000139,2]
[330644143,1719683451668,-151.0,0.000139,2]
[330644144,1719683451677,-236.878636,0.000139,2]
[330644145,1719683451686,-987.017113,0.000139,2]
[330644146,1719683451695,-2982.5390492,0.00013987,2]
[330644147,1719683451704,-1540.88,0.00013988,2]
[330644148,1719683451714,-500.0,0.00013988,2]
[330644149,1719683451723,-1605.98,0.00013988,2]
[330644150,1719683451732,-297.134888,0.00013989,2]
[330644151,1719683451742,-297.134888,0.00013989,2]
[330644152,1719683451751,-151.0,0.00013989,2]
[330644153,1719683451760,-151.0,0.00013989,2]
[330644154,1719683451769,-138895.5992618,0.00013989,2]
[330644155,1719683451778,-151.0,0.00013989,2]
[330644156,1719683451787,-151.0,0.00013989,2]
[330644157,1719683451797,-151.0,0.00013989,2]
[330644158,1719683451806,-15561.6737991,0.00013989,2]
[330644159,1719683451815,-151.0,0.00013989,2]
[330644160,1719683451824,-151.0,0.00013989,2]
[330644161,1719683451837,-151.0,0.00013989,2]
[330644162,1719683451847,-151.0,0.00013989,2]
[330644163,1719683451859,-9230.4487347,0.00013989,2]
[330644164,1719683451868,-169.490808,0.00013989,2]
[330644165,1719683451878,-169.490808,0.00013989,2]
[330644166,1719683451887,-151.0,0.00013989,2]
[330644167,1719683451896,-314.791303,0.00013989,2]
[330644168,1719683451906,-314.791303,0.00013989,2]
[330644169,1719683451915,-151.0,0.00013989,2]
[330644170,1719683451925,-193.679157,0.00013989,2]
[330644171,1719683451935,-151.0,0.00013989,2]
[330644172,1719683451944,-151.0,0.00013989,2]
[330644173,1719683451953,-151.0,0.00013989,2]
[330644174,1719683451962,-449.601505,0.00013989,2]
[330644175,1719683451971,-449.601505,0.00013989,2]
[330644176,1719683451981,-151.0,0.00013989,2]
[330644177,1719683451990,-151.0,0.00013989,2]
[330644178,1719683452000,-151.0,0.00013989,2]
[330644179,1719683452010,-3128.07,0.00013996,3]
[330644180,1719683452019,-3018.27,0.00013996,3]
[330644181,1719683452029,-535.11,0.00013996,3]
[330644182,1719683452038,-1228.49,0.00013997,3]
[330644183,1719683452047,-979.63,0.00013997,3]
[330644184,1719683452057,-500.0,0.00013997,3]
[330644185,1719683452067,-500.0,0.00013997,3]
[330644186,1719683452083,-1022.36,0.00013997,3]
[330644187,1719683452093,-500.0,0.00013997,3]
[330644188,1719683452103,-1324.51,0.00013997,3]
[330644189,1719683452112,-1928.4,0.00013997,3]
[330644190,1719683452123,-500.0,0.00013997,3]
[330644191,1719683452132,-751.04,0.00013997,3]
[330644192,1719683452141,-500.0,0.00013997,3]
[330644193,1719683452153,-500.0,0.00013997,3]
[330644194,1719683452163,-548.81,0.00013997,3]
[330644195,1719683452173,-850.36,0.00013997,3]
[330644196,1719683452182,-661.49,0.00013997,3]
[330644197,1719683452192,-1073.71,0.00013997,3]
[330644198,1719683452202,-1084.32,0.00013997,3]
[330644199,1719683452211,-500.0,0.00013997,3]
[330644200,1719683452221,-500.0,0.00013997,3]
[330644201,1719683452230,-500.0,0.00013997,3]
[330644202,1719683452240,-500.0,0.00013997,3]
[330644203,1719683452250,-8614.77,0.00013997,3]
[330644204,1719683452259,-528.4,0.00013997,3]
[330644205,1719683452269,-1410.39,0.00013997,3]
[330644206,1719683452278,-500.0,0.00013997,3]
[330644207,1719683452287,-1301.42,0.00013997,3]
[330644208,1719683452297,-500.0,0.00013997,3]
[330644209,1719683452306,-5642.79,0.00013997,3]
[330644210,1719683452315,-500.0,0.00013997,3]
[330644211,1719683452324,-500.0,0.00013997,3]
[330644212,1719683452335,-933.28,0.00013997,3]
[330644213,1719683452344,-500.0,0.00013997,3]
[330644214,1719683452354,-13776.1,0.00013997,3]
[330644215,1719683452364,-500.0,0.00013997,3]
[330644216,1719683452373,-531.8,0.00013997,3]